Cogmind - Beta 11.1 @@@ ROGUE MODE // 2022.06.06 @ 14:47:36 Player: Demise Result: Destroyed by Y-45 Defender with Heavy Assault Rifle Performance ------------- Evolutions (1) 500 Regions Visited (4) 800 Robots Destroyed (131) 655 Value Destroyed (3010) 3010 Prototype IDs (11) 220 Alien Tech Used (0) 0 Bonus (1454) 1454 TOTAL SCORE: 6639 Bonus ------- High Alert Combat Kills 1258 Follower Combat Kills 212 Friendly Fire -16 Cogmind --------- Core Integrity 0/400 Matter 270/300 Energy 265/265 System Corruption 2% Temperature Cool (9) Movement Rolling (105) Ox1 Location -9/Storage Parts ------- > --- POWER (1) -------- Improved Ion Engine > --- PROPULSION (2) --- Wheel Compact Wheel > --- UTILITY (4) ------ High-capacity Storage Unit Advanced Weight Redist. System Seismic Detector Hardened Light Armor Plating > --- WEAPON (2) ------- Heavy Assault Rifle Improved Assault Rifle > --- INVENTORY (20) --- Advanced Treads Advanced Treads Huge Storage Unit Signal Interpreter Improved Terrain Scanner Core Shielding Light Armor Plating Trap Extractor (4/4 Blade) Trap Extractor (2/4 Blade) Light EM Pulse Cannon Light EM Pulse Cannon Heavy Assault Rifle Improved Assault Rifle Improved Assault Rifle Improved Assault Rifle Guided EMP Blaster Mini Grenade Launcher Datajack Flail Peak State ------------ > --- POWER ------------ Improved Ion Engine > --- PROPULSION ------- Wheel Compact Wheel > --- UTILITY ---------- High-capacity Storage Unit Advanced Weight Redist. System Core Shielding Hardened Light Armor Plating > --- WEAPON ----------- Guided EMP Blaster > --- INVENTORY -------- Makeshift Power Source Advanced Treads Advanced Treads Huge Storage Unit Signal Interpreter Improved Terrain Scanner Seismic Detector Utility Shielding Light Armor Plating Trap Extractor Trap Extractor Light EM Pulse Cannon Light EM Pulse Cannon Heavy Assault Rifle Improved Assault Rifle Improved Assault Rifle Improved Assault Rifle Mini Grenade Launcher Datajack Flail [Rating: 27] Favorites ----------- Power Ion Engine Engine Ion Engine Propulsion Wheel Treads Improved Treads Wheel Wheel Flight Unit Improved Flight Unit Utility High-capacity Storage Unit Device Advanced Weight Redist. System Storage High-capacity Storage Unit Protection Light Armor Plating Weapon Heavy Assault Rifle Energy Gun Improved EM Shotgun Ballistic Gun Heavy Assault Rifle Ballistic Cannon Light Cannon Launcher Mini Grenade Launcher Impact Weapon Flail Special Melee Weapon Datajack Build | -11 -10 -10 -9 -9 ------- Run | Scr Mat Min Mat Sto Slots Evolved 2 | . . . 2 . Power . | . . . . . Propulsion . | . . . . . Utility 2 | . . . 2 . Weapon . | . . . . . Parts Attached 122 | 7 25 7 49 34 Power 6 | 1 1 1 2 1 Engine 6 | 1 1 1 2 1 Core . | . . . . . Reactor . | . . . . . Propulsion 27 | 3 5 . 13 6 Treads 7 | . . . 5 2 Leg . | . . . . . Wheel 19 | 3 5 . 7 4 Hover . | . . . . . Flight 1 | . . . 1 . Utility 38 | 1 5 2 17 13 Device 10 | . 3 1 2 4 Storage 4 | 1 1 . . 2 Processor . | . . . . . Hackware . | . . . . . Protection 24 | . 1 1 15 7 Artifact . | . . . . . Weapon 51 | 2 14 4 17 14 Energy Gun 1 | . . . 1 . Energy Cannon . | . . . . . Ballistic Gun 38 | 2 10 4 13 9 Ballistic Cannon 1 | . 1 . . . Launcher 7 | . 2 . 3 2 Special Weapon . | . . . . . Impact Weapon 1 | . . . . 1 Slashing Weapon . | . . . . . Piercing Weapon . | . . . . . Special Melee Weapon 3 | . 1 . . 2 Unidentified Prototypes 4 | . . . 3 1 Parts Lost 13 | . . . 11 2 Power 1 | . . . 1 . Propulsion 7 | . . . 5 2 Utility 3 | . . . 3 . Weapon 2 | . . . 2 . Highest Loss Streak 2 | . . . 2 2 To Critical Strikes 1 | . . . 1 . Average Slot Usage (%) 97 | . 90 100 98 99 Engine 11 | . 13 14 10 11 Treads 2 | . . . 3 2 Wheel 20 | . 22 28 18 19 Device 10 | . 6 13 10 14 Storage 12 | . 16 14 11 11 Protection 14 | . 3 . 21 18 Ballistic Gun 23 | . 27 28 21 20 Naked Turns . | . . . . . Heaviest Build 61 | 13 52 48 58 61 Greatest Support 53 | 26 20 20 32 53 Greatest Overweight (x) 4 | 1 4 2 3 3 Average Overweight (x) 1 | . 2 2 1 1 Largest Inventory Capacity 25 | 8 20 20 20 25 Average Capacity 19 | 7 18 20 20 20 Most Carried 20 | 8 20 20 20 20 Average Carried 18 | 3 14 20 19 19 Final Capacity 20 | 8 20 20 20 20 Final Carried 20 | 8 20 20 20 20 Class Distribution -------------------- 73% | Scavenger-Mutant 26% | Mutant Dominant Class ---------------- Mutant | -10/Materials Mutant | -10/Mines Scavenger-Mutant | -9/Materials Scavenger-Mutant | -9/Storage Resources | -11 -10 -10 -9 -9 ----------- Run | Scr Mat Min Mat Sto Matter Collected 3205 | 342 390 212 1438 823 Remotely . | . . . . . Salvage Created 4459 | 243 516 14 2374 1312 Parts 285 | 18 32 1 168 66 Haulers Intercepted 10 | . 2 . 6 2 Recyclers Shooed 7 | 1 3 . 1 2 Parts Field Recycled . | . . . . . Retrieved Matter . | . . . . . Parts Self-Destructed . | . . . . . Prevented . | . . . . . Kills | -11 -10 -10 -9 -9 ------- Run | Scr Mat Min Mat Sto Combat Hostiles Destroyed 89 | . 17 1 52 19 Guns 76 | . 15 1 42 18 AOE 13 | . 2 . 10 1 Classes Destroyed 14 | 3 5 . 6 . Worker 7 | 2 . . 2 3 Builder 6 | . . . 4 2 Tunneler 8 | 5 . . 2 1 Hauler 10 | . 2 . 6 2 Recycler 4 | 1 . . 1 2 Mechanic 2 | . . . 2 . Operator 2 | . 1 . 1 . Watcher 8 | . 1 . 5 2 Swarmer 20 | . 9 1 10 . Grunt 46 | . 8 . 28 10 Brawler 2 | . . . 2 . Duelist 2 | . . . 2 . Protector 1 | . . . 1 . Sentry 18 | . . . 9 9 Best Kill Streak 16 | 4 6 1 16 5 Combat Bots Only 11 | . 5 1 11 4 Max Kills in Single Turn 4 | 1 1 1 4 1 Gunslinging 1 | . . . 1 . Exploded 2 | . 1 . 2 1 Melee . | . . . . . Uniques/NPCs Destroyed . | . . . . . Combat | -11 -10 -10 -9 -9 -------- Run | Scr Mat Min Mat Sto Damage Taken 3201 | . 525 81 1813 782 Core 580 | . 154 23 208 195 Absorbed by Shields . | . . . . . Redirected to Shielding 62 | . 7 2 40 13 Regen/Repaired (Parts) 288 | . 60 . 228 . Core Remaining (%) 64 | 100 . 29 . . Volleys Fired 353 | 18 86 7 166 76 Largest 2 | 2 2 2 2 2 Hottest 53 | 40 40 40 53 53 Shots Fired 684 | 36 159 14 321 154 Gun 665 | 36 153 14 309 153 Cannon . | . . . . . Launcher 19 | . 6 . 12 1 Special . | . . . . . Kinetic 665 | 36 153 14 309 153 Thermal . | . . . . . Explosive 19 | . 6 . 12 1 Electromagnetic . | . . . . . Robot Hit Streak 17 | 8 17 1 14 12 Robot Miss Streak 14 | 2 5 14 7 3 Penetration Max . | . . . . . Secondary Targets 6 | . . . 5 1 Max Gunslinging Chain 1 | . . . 1 1 Shots Hit Robots 423 | 23 87 1 201 111 Core Hits 207 | 10 40 1 112 44 Critical Kills 1 | . . . 1 . Critical Parts Destroyed 3 | . . . 2 1 Critical Strikes 5 | . . . 3 2 Destroy 5 | . . . 3 2 Melee Attacks 2 | . . . . 2 Impact 2 | . . . . 2 Slashing . | . . . . . Piercing . | . . . . . Sneak Attacks . | . . . . . Combat Hostiles . | . . . . . Follow-up Attacks . | . . . . . Damage Inflicted 7928 | 239 1091 25 4732 1841 Guns 5891 | 239 741 25 3132 1754 Cannons . | . . . . . Explosions 2037 | . 350 . 1600 87 Melee . | . . . . . Ramming . | . . . . . Kinetic 5891 | 239 741 25 3132 1754 Thermal 328 | . . . 328 . Explosive 1709 | . 350 . 1272 87 Electromagnetic . | . . . . . Impact . | . . . . . Slashing . | . . . . . Piercing . | . . . . . Highest Corruption 2 | . 1 1 1 2 Average Corruption 1 | . 1 1 1 1 Corruption Purged . | . . . . . Corruption Blocked . | . . . . . Effects 39 | . 8 3 16 12 Message Errors 5 | . 1 . 4 . Matter Fused 6 | . 2 . 1 3 Heat Flow Errors 6 | . 2 . 2 2 Energy Discharges 8 | . 1 1 5 1 Data Loss (minor) 8 | . 1 2 2 3 Data Loss (major) 1 | . 1 . . . Misfires 2 | . . . . 2 Alerts 1 | . . . . 1 Weapon Failures 2 | . . . 2 . Overload Shots . | . . . . . Overflow Damage 120 | . 19 . 101 . Projectiles . | . . . . . Explosions 120 | . 19 . 101 . Melee . | . . . . . Knockbacks . | . . . . . Impact . | . . . . . Kinetic . | . . . . . Secondary . | . . . . . Self-Inflicted Damage . | . . . . . Shots . | . . . . . Rammed . | . . . . . Targets Rammed . | . . . . . Kicked . | . . . . . Crushed . | . . . . . Highest Temperature 470 | . 181 . 470 227 Average Temperature 57 | . 34 . 67 40 Received Heat Transfer 1191 | . 156 . 717 318 Effects 6 | . . . 6 . Shutdowns 2 | . . . 2 . Interference 2 | . . . 2 . Damage (minor) 2 | . . . 2 . Siege Activations . | . . . . . Robots Corrupted . | . . . . . Combat Hostiles . | . . . . . Parts Fried . | . . . . . Impact Corruptions . | . . . . . Robots Melted . | . . . . . Combat Hostiles . | . . . . . Parts Melted . | . . . . . Heat Transferred 250 | . . . 250 . Parts Sabotaged . | . . . . . Parts Stolen . | . . . . . Parts Stripped . | . . . . . Power Chain Reactions . | . . . . . Missiles Intercepted . | . . . . . Alert | -11 -10 -10 -9 -9 ------- Run | Scr Mat Min Mat Sto Peak Influence 1617 | 40 360 354 1617 1144 Initial 683 | . 26 140 68 683 Average 664 | 17 220 179 923 964 Maximum Alert Level 5 | . 1 1 5 4 Low Security (%) 21 | 100 29 83 5 . Level 1 21 | . 70 16 9 . Level 2 2 | . . . 4 3 Level 3 41 | . . . 52 92 Level 4 10 | . . . 23 3 Level 5 1 | . . . 4 . High Security . | . . . . . Max Security . | . . . . . Sterilizations 1 | . . . 1 . Squads Dispatched 21 | . 5 . 12 4 Investigation 14 | . 4 . 6 4 Extermination . | . . . . . Reinforcement 4 | . 1 . 3 . Assault 3 | . . . 3 . Garrison . | . . . . . Intercept . | . . . . . Searches Triggered . | . . . . . Construction Impeded 2 | . . . 2 . Haulers Reinforced . | . . . . . Active Scanning Responses . | . . . . . Cargo Convoy Interrupts . | . . . . . Stealth | -11 -10 -10 -9 -9 --------- Run | Scr Mat Min Mat Sto Distress Signals 8 | . 1 . 5 2 Communications Jammed . | . . . . . Distress Signals . | . . . . . Times Spotted 133 | . 26 8 75 24 Peak Tracking Total 8 | . 3 5 8 4 Tactical Retreats 9 | . 1 2 5 1 Traps | -11 -10 -10 -9 -9 ------- Run | Scr Mat Min Mat Sto Traps Triggered 2 | . 1 . 1 . Indirectly . | . . . . . Trap Hack Attempts 89 | . 9 . . 80 Triggered . | . . . . . Disarmed . | . . . . . Reprogrammed 7 | . 1 . . 6 Reused . | . . . . . Traps Extracted 6 | . . . . 6 Installed . | . . . . . Triggered . | . . . . . Most Traps Carried 6 | . . . . 6 Machines | -11 -10 -10 -9 -9 ---------- Run | Scr Mat Min Mat Sto Machines Disabled 4 | . . . 3 1 Max in Single Turn 3 | . . . 3 1 Machines Sabotaged . | . . . . . Garrisons Compromised . | . . . . . Overloaded Fab Kills . | . . . . . Hacking | -11 -10 -10 -9 -9 --------- Run | Scr Mat Min Mat Sto Machines Accessed 31 | . 9 . 14 8 Terminals 21 | . 6 . 11 4 Fabricators . | . . . . . Repair Stations 3 | . 1 . 1 1 Recycling Units 6 | . 2 . 2 2 Scanalyzers . | . . . . . Garrison Access 1 | . . . . 1 Total Hacks 124 | . 39 . 60 25 Successful 71 | . 24 . 33 14 Failed 50 | . 14 . 26 10 Catastrophic 3 | . 2 . 1 . Database Lockouts 3 | . 1 . 1 1 Manual 77 | . 28 . 32 17 Terminals 85 | . 29 . 43 13 Fabricators . | . . . . . Repair Stations 18 | . 5 . 10 3 Recycling Units 18 | . 5 . 7 6 Scanalyzers . | . . . . . Garrison Access 3 | . . . . 3 Terminal Hacks 22 | . 8 . 10 4 Robot Schematic 1 | . . . . 1 Robot Analysis 6 | . 2 . 3 1 Prototype ID Bank 4 | . 1 . 3 . Open Door 2 | . . . . 2 Level Access Points 1 | . 1 . . . Branch Access Points 2 | . 1 . 1 . Terminal Index 2 | . 1 . 1 . Locate Traps 3 | . 2 . 1 . Hauler Manifests 1 | . . . 1 . Fabricator Hacks . | . . . . . Repair Station Hacks 15 | . 4 . 10 1 Scan Component 8 | . 2 . 5 1 Repair 7 | . 2 . 5 . Recycling Unit Hacks 6 | . 2 . 2 2 Retrieve Components 6 | . 2 . 2 2 Scanalyzer . | . . . . . Garrison Access Hacks . | . . . . . Unauthorized Hacks 28 | . 10 . 11 7 Terminals 20 | . 8 . 9 3 Track 1 | . 1 . . . Assimilate 1 | . . . 1 . Botnet 15 | . 6 . 7 2 Operators 3 | . 1 . 1 1 Fabricators . | . . . . . Repair Stations . | . . . . . Recycling Units 7 | . 2 . 2 3 Recyclers 1 | . . . . 1 Mask 1 | . . . . 1 Tunnel 5 | . 2 . 2 1 Scanalyzers . | . . . . . Garrison Access 1 | . . . . 1 Reprogram 1 | . . . . 1 Data Cores Recovered . | . . . . . Used . | . . . . . Hacking Detections 23 | . 6 . 12 5 Full Trace Events 12 | . 4 . 6 2 Feedback Events 3 | . 1 . 1 1 Corruption 3 | . 1 . 1 1 Feedback Blocked 1 | . . . 1 . Robot Schematics Acquired 1 | . . . . 1 Robots Built . | . . . . . Authchips . | . . . . . Time . | . . . . . Total Robot Build Rating . | . . . . . Part Schematics Acquired . | . . . . . Parts Built . | . . . . . Authchips . | . . . . . Time . | . . . . . Total Part Build Rating . | . . . . . Parts Repaired 7 | . 2 . 5 . Time 194 | . 52 . 142 . Parts Recycled . | . . . . . Recycled Matter . | . . . . . Retrieved Matter . | . . . . . Retrieved Components 48 | . 19 . 11 18 Parts Scanalyzed . | . . . . . Part Schematics Acquired . | . . . . . Parts Damaged . | . . . . . Bothacking | -11 -10 -10 -9 -9 ------------ Run | Scr Mat Min Mat Sto Used RIF Installer . | . . . . . Robots Hacked . | . . . . . Non-combat . | . . . . . Combat . | . . . . . Robot Hacks Applied . | . . . . . Relay Couplers Released . | . . . . . Fabnet Peak Effective % . | . . . . . Robots Rewired . | . . . . . Allies Hacked . | . . . . . Hacks Repelled . | . . . . . Allies | -11 -10 -10 -9 -9 -------- Run | Scr Mat Min Mat Sto Total Allies 5 | . . 2 1 2 Largest Group 3 | . . 2 1 3 Highest-Rated Group 45 | . . 45 31 26 Highest-Rated Ally 31 | . . 31 31 10 Total Orders 2 | . . . . 2 STAY 1 | . . . . 1 FOLLOW 1 | . . . . 1 Ally Attacks 38 | . . 18 12 8 Total Damage 463 | . . 227 169 67 Kills 12 | . . 7 4 1 Allies Corrupted . | . . . . . Allies Melted . | . . . . . Intel | -11 -10 -10 -9 -9 ------- Run | Scr Mat Min Mat Sto Robot Analysis Total 6 | . 2 . 3 1 Derelict Logs Recovered 2 | . . 2 . . Drone Launches . | . . . . . Drone Recoveries . | . . . . . Exploration | -11 -10 -10 -9 -9 ------------- Run | Scr Mat Min Mat Sto Turns Passed 5143 | 128 1112 642 2200 1061 Spaces Moved 2972 | 66 643 547 1138 578 Core 2 | 2 . . . . Treads 213 | . . . 195 18 Legs . | . . . . . Wheels 2757 | 64 643 547 943 560 Hover . | . . . . . Flight . | . . . . . Fastest Speed 50 | 50 80 110 95 95 Average Speed 117 | 88 116 110 127 107 Slowest Speed 240 | 100 140 110 240 225 Overloaded Moves . | . . . . . Propulsion Burnouts . | . . . . . Robots Hopped . | . . . . . Cave-ins Triggered . | . . . . . Exploration Rate (%) 71 | 3 96 98 97 64 Regions Visited 4 Branch Regions 2 Pre-discovered Areas 7 | . 2 2 2 1 Known Exits Taken 3 | . 1 1 1 . Unknown Exits Taken 1 | 1 . . . . Scrap Searched 2 | . . 2 . . Spaces Dug 10 | . 10 . . . Terrain Destroyed 169 | . 43 . 114 12 Melee . | . . . . . Projectile . | . . . . . AOE 169 | . 43 . 114 12 Terrain Rammed . | . . . . . Walls Destroyed . | . . . . . Machines Disabled . | . . . . . Actions | -11 -10 -10 -9 -9 --------- Run | Scr Mat Min Mat Sto Total 3992 | 105 868 577 1578 864 Wait 315 | . 74 10 167 64 Move 2968 | 65 642 546 1137 578 Hop . | . . . . . Pick Up 59 | 11 18 1 22 7 Fast Attach 37 | 7 7 1 15 7 Attach 25 | . 5 . 16 4 Detach 13 | . 2 . 8 3 Swap 60 | . 13 6 18 23 Drop 71 | 4 12 6 29 20 Fire 353 | 18 86 7 166 76 Melee 2 | . . . . 2 Ram . | . . . . . Kick . | . . . . . Crush . | . . . . . Escape Stasis . | . . . . . Rewire . | . . . . . Trap 89 | . 9 . . 80 Miscellaneous . | . . . . . Route ------- -11/Scrapyard -10/Materials (discovered 5 exits: *Mat x3 / *Min x2) -10/Mines (discovered 2 exits: *Mat x2) -9/Materials (discovered 6 exits: [*Mat x3] / *Min x2 / *Sto) -9/Storage History --------- Turn | Location | Event 14 | -11/Scrapyard | Discovered new exit (range 15) 129 | -11/Scrapyard | Entered Materials 140 | -10/Materials | Discovered new exit (range 13) 548 | -10/Materials | Discovered new exit (range 16) 592 | -10/Materials | Build established: Scavenger-Mutant 592 | -10/Materials | Central database locked down 696 | -10/Materials | Core integrity fell below 50% 732 | -10/Materials | Discovered new exit (range 9) 840 | -10/Materials | Identified exit to Mines 840 | -10/Materials | Identified exit to Materials 896 | -10/Materials | Build established: Mutant 939 | -10/Materials | Repaired Lgt. Assault Rifle 966 | -10/Materials | Repaired Lgt. Assault Rifle 1241 | -10/Materials | Entered Mines 1306 | -10/Mines | Discovered exit to Materials (range 9) 1647 | -10/Mines | Learned location of Storage (-9) 1697 | -10/Mines | Learned location of Zion (-7) 1733 | -10/Mines | Learned Materials security intel 1786 | -10/Mines | Discovered exit to Materials (range 10) 1812 | -10/Mines | Received a Rocket Launcher from a helpful Derelict 1883 | -10/Mines | Entered Materials 1883 | -9/Materials | Accompanied by 1 ally 1883 | -9/Materials | Evolved 2 slots: Utility x2 1890 | -9/Materials | Led the pair of lost Derelicts to an unsafe place 2069 | -9/Materials | Build established: Scavenger-Mutant 2212 | -9/Materials | Discovered new exit (range 9) 2295 | -9/Materials | Discovered new exit (range 11) 2343 | -9/Materials | Destroyed 11 combat bots 2358 | -9/Materials | Discovered new exit (range 14) 2807 | -9/Materials | Identified exit to Mines 2807 | -9/Materials | Identified exit to Storage 2930 | -9/Materials | Discovered new exit (range 11) 3080 | -9/Materials | Repaired Lgt. Armor Plating? 3113 | -9/Materials | Repaired Core Shielding 3147 | -9/Materials | Repaired Hvy. Assault Rifle 3180 | -9/Materials | Repaired Hvy. Assault Rifle 3208 | -9/Materials | Repaired Lgt. Armor Plating 3468 | -9/Materials | Central database locked down 3483 | -9/Materials | First assault squad dispatched 3514 | -9/Materials | Discovered new exit (range 5) 3536 | -9/Materials | Core integrity fell below 50% 3949 | -9/Materials | Sterilization system engaged 3949 | -9/Materials | Non-combat units ordered to evacuate 4049 | -9/Materials | Combat units ordered to evacuate 4083 | -9/Materials | Entered Storage 4083 | -9/Storage | Accompanied by 1 ally 4408 | -9/Storage | Central database locked down 4926 | -9/Storage | Core integrity fell below 20% 5144 | -9/Storage | Destroyed by Y-45 Defender with Heavy Assault Rifle Last Messages --------------- 05019_ G-34 Mercenary destroyed. 05037_ Acquired 31 matter. 05065_ G-34 Mercenary destroyed. 05070_ Acquired 16 matter. 05073_ Acquired 6 matter. 05075_ G-34 Mercenary destroyed. 05076_ Acquired 6 matter. 05078_ G-34 Mercenary destroyed. 05079_ Acquired 6 matter. 05080_ K-01 Serf collects debris. 05086_ System corrupted: Matter fused (-10). 05087_ Acquired 10 matter. 05088_ K-01 Serf collects debris. 05098_ K-01 Serf cleans the Transport Mainframe. 05103_ K-01 Serf destroyed. 05104_ Extracted 6 matter. 05116_ System corrupted: FCS attempts to trigger Imp. Assault Rifle. 05116_ System corrupted: Imp. Assault Rifle misfires. 05116_ Extracted 3 matter. 05132_ Y-45 Defender destroyed. Map ----- +----------------------------------------------------+ | ?# ######### #################### ##### | | ?# #???????######?#"""# ### ### ##???? | | ?# #????????????###"Y"#####! #?# ###### | | ?# #????????????# ]*!!* # #?# # | | ?# #????????????# [=!= # #?# # ! | | ?# #######?###??# =! [ # %###! # | | ?# # ?? #??# """ """ # % + # | | ?# # ???" #??# """=""" # ### #[ | | ?# # """?]" #??# """%""" # #?# + | | ?# [%# " ""!" #??# !| # #?# # | | ?# =*+ "!" !" #??# #=%! ### ###### | | ?# %# "[]"""=#######+#######+####### ##### | | ?# # """ %%+[!%!=%!! *%! % ^^ ! | | ?# # r[######%== = ^^ | | ?# ###########????#[%###/########### ### # | | ?# ###?### ######## ## ###+#####+# | | ?# # [ ## ## """ """ ## ! | | ?# # """" """" #^ # """ """ ## | | ?# # """" """" + # """ """ ## | | ?# # """" """" # # ## ! | | ?# # """" """" # # ?# ! | | ?# # %! ## ## ## | | ?# ################ ############### [ | | ?# #??#"""#???????# #?????????????# | | ?# #??#"G"#???????#o #?????????????########## | | ?# ####" "###?????# @#??????????????????????? | | ?# # #?????# #??????????????????????? | | ?# # """#?????# #??????????????????????? | | ?# # """#?????# +??????????????????????? | | ?# # """#?????# #??????????????????????? | | ?# + """#?????# #??????????????????????? | | ?# # """#?????# #??????????????????????? | | ?# # #?????# #??????????????????????? | | ?# # #?????+ #??????????????????????? | | ?# !# #?????# ???????????????????????? | | ?# ![####"T"###?????# ???????????????????????? | | ?#=| #??#####??????? =[???????????????????????? | | ?# ![###????????????!%[???????????????????????? | | ?# *#T####????????? * ???????????????????????? | | ?# # ]]#????????? ???????????????????????? | | ?# + ]]#?????????# Y???????????????????????? | | ?# # ]]#???????????????????????????????????? | | ?# ######???????????????????????????????????? | | ?# #????????????????????????????????????????? | | ## ##???????????????????????????????????????? | | # #???????????????????????????????????????? | | # #???????????????????????????????????????? | | # = ! #??????????????????????????????o????????? | | # = #???????????????????????????????????????? | | # #???????????????????????????????????????? | +----------------------------------------------------+ Best States ------------- Heat Dissipation 28 Energy Generation 15 Energy Capacity 280 Matter Stores 300 Matter Capacity 300 Sight Range 16 Terrain Scan Density 10 Additional Mass Support 9 Armor Coverage 300 Core Shielding 20 Power Shielding 33 Utility Shielding 33 Evasion (%) 44 Recoil Reduction 2 Trap Extractor Capacity 4 Item Schematics ----------------- None Robot Schematics ------------------ Y-45 Defender | -9/Storage | Hacked Fabricated ------------ Nothing Alien Tech Used ----------------- None Achievements -------------- None Challenges ------------ None Game ------ Seed ArcDeliveryArchive Manual? 0 Play Time 00:51:20 Cumulative 572.5 hours Start 2022.06.06 @ 13:56:29 End 2022.06.06 @ 14:47:36 Sessions 1 Manual Loads 0 Difficulty Rogue Special Mode None Game No. 461 Rogue 461 Adventurer 0 Explorer 0 Win Type - Total 5 Types 4/0/0/1/0/0/0/0/0 Lore% 71 Gallery% 84 Achievement% 66 Wizard Run 0 Options --------- ASCII 0 Keyboard 1 Movement Numpad Keybinds 0 Fullscreen 1 Font 12/Terminus Map View 83x54 Tactical HUD 1 Map Filters NONE Filters NONE Steam 1 RUN: c5fa5d77-c635-4fe0-ba4d-dce1956930e6